Cogmind - Beta 9.2 @@@ ROGUE MODE // 2019.12.15 @ 23:11:52 Player: aaa Result: Destroyed by D-53 Grenadier with Mini Grenade Launcher Performance ------------- Evolutions (0) 0 Regions Visited (2) 400 Robots Destroyed (14) 70 Value Destroyed (116) 116 Prototype IDs (0) 0 Alien Tech Used (0) 0 Bonus (0) 0 TOTAL SCORE: 586 Bonus ------- None Cogmind --------- Core Integrity 0/250 Matter 141/300 Energy 12/100 System Corruption 0% Temperature Cool (0) Movement Core (350) Ox6 Location -10/Mines Parts ------- > --- POWER (1) -------- (None) > --- PROPULSION (2) --- (None) > --- UTILITY (2) ------ Large Storage Unit Power Shielding > --- WEAPON (2) ------- EM Pulse Gun > --- INVENTORY (10) --- ECM Suite Small Laser Peak State ------------ > --- POWER ------------ Ion Engine > --- PROPULSION ------- Aluminum Leg Aluminum Leg > --- UTILITY ---------- Large Storage Unit Power Shielding > --- WEAPON ----------- Small Laser Assault Rifle > --- INVENTORY -------- Light Ion Engine Aluminum Leg Aluminum Leg Large Storage Unit EM Pulse Gun EM Pulse Gun EM Pulse Gun Small Laser Light Assault Rifle Grenade Launcher [Rating: 8] Favorites ----------- Power Light Ion Engine Engine Light Ion Engine Propulsion Aluminum Leg Leg Aluminum Leg Utility Large Storage Unit Storage Large Storage Unit Protection Power Shielding Weapon Assault Rifle Energy Gun Small Laser Ballistic Gun Assault Rifle Launcher Grenade Launcher Build | -11 -10 -10 ------- Run | Scr Mat Min Slots Evolved . | . . . Power . | . . . Propulsion . | . . . Utility . | . . . Weapon . | . . . Parts Attached 23 | 6 8 9 Power 3 | 1 1 1 Engine 3 | 1 1 1 Core . | . . . Reactor . | . . . Propulsion 6 | 3 1 2 Treads . | . . . Leg 6 | 3 1 2 Wheel . | . . . Hover . | . . . Flight . | . . . Utility 4 | . 4 . Device . | . . . Storage 3 | . 3 . Processor . | . . . Hackware . | . . . Protection 1 | . 1 . Artifact . | . . . Weapon 10 | 2 2 6 Energy Gun 6 | 1 1 4 Energy Cannon . | . . . Ballistic Gun 2 | 1 . 1 Ballistic Cannon . | . . . Launcher 2 | . 1 1 Special Weapon . | . . . Impact Weapon . | . . . Slashing Weapon . | . . . Piercing Weapon . | . . . Special Melee Weapon . | . . . Unidentified Prototypes . | . . . Parts Lost 13 | . 1 12 Power 3 | . 1 2 Propulsion 4 | . . 4 Utility . | . . . Weapon 6 | . . 6 Highest Loss Streak 12 | . 1 12 Average Slot Usage (%) 90 | . 91 83 Engine 13 | . 13 11 Leg 27 | . 28 21 Storage 18 | . 18 14 Protection 2 | . 1 14 Energy Gun 12 | . 12 11 Ballistic Gun 13 | . 14 9 Naked Turns . | . . . Heaviest Build 40 | 6 40 25 Greatest Support 20 | 20 20 20 Greatest Overweight (x) 2 | 1 1 2 Average Overweight (x) . | . . 1 Largest Inventory Capacity 16 | 4 16 10 Average Capacity 10 | 4 12 10 Most Carried 10 | 4 10 10 Average Carried 5 | 2 5 8 Final Capacity 10 | 4 10 10 Final Carried 10 | 4 10 2 Class Distribution -------------------- 100% | Mutant Dominant Class ---------------- Mutant | -10/Materials Mutant | -10/Mines Resources | -11 -10 -10 ----------- Run | Scr Mat Min Matter Collected 370 | 272 71 27 Remotely . | . . . Salvage Created 173 | 44 122 7 Parts 13 | 3 10 . Haulers Intercepted . | . . . Recyclers Shooed 1 | . 1 . Parts Field Recycled . | . . . Retrieved Matter . | . . . Parts Self-Destructed . | . . . Prevented . | . . . Kills | -11 -10 -10 ------- Run | Scr Mat Min Combat Hostiles Destroyed 11 | 1 6 4 Guns 8 | 1 5 2 AOE 3 | . 1 2 Classes Destroyed 6 | 1 4 1 Worker 1 | . 1 . Builder 1 | . 1 . Recycler 1 | . 1 . Swarmer 6 | . 6 . Grunt 1 | 1 . . Assembled 4 | . . 4 Best Kill Streak 4 | 1 4 4 Combat Bots Only 4 | 1 3 4 Max Kills in Single Turn 2 | 1 1 2 Gunslinging . | . . . Exploded 2 | . 1 2 Melee . | . . . Uniques/NPCs Destroyed . | . . . Combat | -11 -10 -10 -------- Run | Scr Mat Min Damage Taken 1266 | 55 369 842 Core 259 | 11 47 201 Absorbed by Shields . | . . . Core Remaining (%) 95 | 95 . . Volleys Fired 33 | 4 20 9 Largest 2 | 2 2 2 Hottest 80 | 60 60 80 Shots Fired 52 | 8 31 13 Gun 41 | 8 23 10 Cannon . | . . . Launcher 11 | . 8 3 Special . | . . . Kinetic 20 | 4 12 4 Thermal 18 | 4 11 3 Explosive 11 | . 8 3 Electromagnetic 3 | . . 3 Robot Hit Streak 6 | 5 6 3 Robot Miss Streak 3 | 2 3 1 Penetration Max . | . . . Secondary Targets 3 | . 1 2 Max Gunslinging Chain 1 | . 1 1 Shots Hit Robots 29 | 5 16 8 Core Hits 27 | 2 13 12 Critical Hits . | . . . Critical Kills . | . . . Critical Parts Destroyed . | . . . Melee Attacks . | . . . Impact . | . . . Slashing . | . . . Piercing . | . . . Sneak Attacks . | . . . Combat Hostiles . | . . . Follow-up Attacks . | . . . Damage Inflicted 722 | 71 346 305 Guns 301 | 71 162 68 Cannons . | . . . Explosions 421 | . 184 237 Melee . | . . . Ramming . | . . . Kinetic 151 | 50 85 16 Thermal 128 | 21 77 30 Explosive 421 | . 184 237 Electromagnetic 22 | . . 22 Impact . | . . . Slashing . | . . . Piercing . | . . . Highest Corruption . | . . . Average Corruption . | . . . Corruption Purged . | . . . Overload Shots . | . . . Overflow Damage 26 | . . 26 Projectiles . | . . . Explosions 26 | . . 26 Melee . | . . . Knockbacks . | . . . Impact . | . . . Kinetic . | . . . Secondary . | . . . Self-Inflicted Damage 39 | . 1 38 Shots 2 | . 1 1 Rammed . | . . . Targets Rammed . | . . . Kicked . | . . . Crushed . | . . . Highest Temperature 60 | 6 . 60 Average Temperature 12 | 6 . 17 Received Heat Transfer 70 | 30 . 40 Siege Activations . | . . . Robots Corrupted . | . . . Combat Hostiles . | . . . Parts Fried . | . . . Impact Corruptions . | . . . Robots Melted . | . . . Combat Hostiles . | . . . Parts Melted . | . . . Heat Transferred 300 | 50 175 75 Parts Sabotaged . | . . . Parts Stolen . | . . . Parts Stripped . | . . . Power Chain Reactions . | . . . Missiles Intercepted . | . . . Alert | -11 -10 -10 ------- Run | Scr Mat Min Peak Influence 194 | 20 194 1 Average Influence 48 | 4 61 . Maximum Alert Level . | . . . Low Security (%) 100 | 100 100 100 Level 1 . | . . . Level 2 . | . . . Level 3 . | . . . Level 4 . | . . . Level 5 . | . . . High Security . | . . . Max Security . | . . . Squads Dispatched . | . . . Investigation . | . . . Extermination . | . . . Reinforcement . | . . . Assault . | . . . Garrison . | . . . Intercept . | . . . Construction Impeded . | . . . Haulers Reinforced . | . . . Stealth | -11 -10 -10 --------- Run | Scr Mat Min Distress Signals 1 | . . 1 Communications Jammed . | . . . Distress Signals . | . . . Times Spotted 28 | 1 13 14 Peak Tracking Total 11 | 1 4 11 Tactical Retreats 5 | . 4 1 Traps | -11 -10 -10 ------- Run | Scr Mat Min Traps Triggered . | . . . Indirectly . | . . . Trap Hack Attempts . | . . . Triggered . | . . . Disarmed . | . . . Reprogrammed . | . . . Reused . | . . . Traps Extracted . | . . . Installed . | . . . Triggered . | . . . Machines | -11 -10 -10 ---------- Run | Scr Mat Min Machines Disabled 1 | . 1 . Max in Single Turn 1 | . 1 . Machines Sabotaged . | . . . Garrisons Compromised . | . . . Overloaded Fab Kills . | . . . Fab Network Shutdowns . | . . . Hacking | -11 -10 -10 --------- Run | Scr Mat Min Machines Accessed 4 | . 4 . Terminals 3 | . 3 . Fabricators . | . . . Repair Stations . | . . . Recycling Units 1 | . 1 . Scanalyzers . | . . . Garrison Access . | . . . Total Hacks 11 | . 11 . Successful 8 | . 8 . Failed 3 | . 3 . Catastrophic . | . . . Database Lockouts . | . . . Manual . | . . . Terminals 8 | . 8 . Fabricators . | . . . Repair Stations . | . . . Recycling Units 3 | . 3 . Scanalyzers . | . . . Garrison Access . | . . . Terminal Hacks 6 | . 6 . Record 2 | . 2 . Emergency Access Points 2 | . 2 . Investigation Status 1 | . 1 . Reinforcement Status 1 | . 1 . Fabricator Hacks . | . . . Repair Station Hacks . | . . . Recycling Unit Hacks 2 | . 2 . Report Inventory 1 | . 1 . Retrieve Components 1 | . 1 . Scanalyzer . | . . . Garrison Access Hacks . | . . . Unauthorized Hacks . | . . . Terminals . | . . . Fabricators . | . . . Repair Stations . | . . . Recycling Units . | . . . Scanalyzers . | . . . Garrison Access . | . . . Data Cores Recovered . | . . . Used . | . . . Hacking Detections 3 | . 3 . Full Trace Events . | . . . Feedback Events . | . . . Feedback Blocked . | . . . Robot Schematics Acquired . | . . . Robots Built . | . . . Matter . | . . . Time . | . . . Total Robot Build Rating . | . . . Part Schematics Acquired . | . . . Parts Built . | . . . Matter . | . . . Time . | . . . Total Part Build Rating . | . . . Parts Repaired . | . . . Time . | . . . Parts Recycled . | . . . Recycled Matter . | . . . Retrieved Matter . | . . . Retrieved Components 3 | . 3 . Parts Scanalyzed . | . . . Part Schematics Acquired . | . . . Parts Damaged . | . . . Bothacking | -11 -10 -10 ------------ Run | Scr Mat Min Used RIF Installer . | . . . Robots Hacked . | . . . Non-combat . | . . . Combat . | . . . Robot Hacks Applied . | . . . Relay Couplers Released . | . . . Robots Rewired . | . . . Allies Hacked . | . . . Hacks Repelled . | . . . Allies | -11 -10 -10 -------- Run | Scr Mat Min Total Allies . | . . . Largest Group . | . . . Highest-Rated Group . | . . . Highest-Rated Ally . | . . . Total Orders . | . . . Ally Attacks . | . . . Total Damage . | . . . Kills . | . . . Allies Corrupted . | . . . Allies Melted . | . . . Intel | -11 -10 -10 ------- Run | Scr Mat Min Robot Analysis Total . | . . . Derelict Logs Recovered . | . . . Drone Launches . | . . . Drone Recoveries . | . . . Exploration | -11 -10 -10 ------------- Run | Scr Mat Min Turns Passed 672 | 94 520 58 Spaces Moved 380 | 78 285 17 Core 43 | 43 . . Treads . | . . . Legs 337 | 35 285 17 Wheels . | . . . Hover . | . . . Flight . | . . . Fastest Speed 50 | 50 120 150 Average Speed 135 | 85 148 151 Slowest Speed 180 | 120 150 180 Overloaded Moves . | . . . Propulsion Burnouts . | . . . Robots Hopped . | . . . Cave-ins Triggered . | . . . Exploration Rate (%) 23 | 5 55 11 Regions Visited 2 Branch Regions 1 Pre-discovered Areas . | . . . Known Exits Taken . | . . . Unknown Exits Taken 2 | 1 1 . Scrap Searched 1 | . . 1 Spaces Dug . | . . . Terrain Destroyed 46 | . 14 32 Melee . | . . . Projectile . | . . . AOE 46 | . 14 32 Actions | -11 -10 -10 --------- Run | Scr Mat Min Total 488 | 97 354 37 Wait 27 | . 27 . Move 378 | 77 284 17 Hop . | . . . Pick Up 19 | 8 10 1 Fast Attach 2 | 2 . . Attach 18 | 3 7 8 Detach 4 | . 4 . Swap 3 | 1 1 1 Drop 4 | 2 1 1 Fire 33 | 4 20 9 Melee . | . . . Ram . | . . . Kick . | . . . Crush . | . . . Escape Stasis . | . . . Rewire . | . . . Trap . | . . . Miscellaneous . | . . . Route ------- -11/Scrapyard -10/Materials -10/Mines History --------- Turn | Location | Event 2 | -11/Scrapyard | Met Revision 17 55 | -11/Scrapyard | Discovered new exit (range 8) 95 | -11/Scrapyard | Entered Materials 310 | -10/Materials | Build established: Mutant 586 | -10/Materials | Discovered new exit (range 9) 615 | -10/Materials | Entered Mines 637 | -10/Mines | Assembled infested the area 663 | -10/Mines | Core integrity fell below 50% 672 | -10/Mines | Core integrity fell below 20% 673 | -10/Mines | Destroyed by D-53 Grenadier with Mini Grenade Launcher Last Messages --------------- 00667_ R-06 Scavenger system corrupted by crushing effect. 00667_ R-06 Scavenger knocked back. 00667_ as-56556 destroyed. 00667_ U-05 Engineer lays Concrete. 00668_ as-19703 destroyed. 00668_ Switching to secondary target: D-53 Grenadier. 00668_ U-05 Engineer lays Concrete. 00669_ Aluminum Leg destroyed. 00669_ EM Pulse Gun destroyed. 00669_ R-06 Scavenger destroyed. 00669_ U-05 Engineer lays Concrete. 00670_ U-05 Engineer builds a Wall. 00671_ U-05 Engineer lays Concrete. 00671_ EM Pulse Gun destroyed. 00671_ as-25761 destroyed. 00671_ T-07 Excavator destroyed. 00671_ as-26430 destroyed. 00672_ U-05 Engineer lays Concrete. 00673_ U-05 Engineer builds a Wall. [Achievement: First Step to Greatness] Map ----- +----------------------------------------------------+ | ?????????????????????????????????????????? | | ?????????????????????????????????????????? | | ?????????????????????????????????????????? | | ?????????????????????????????????????????? | | ?????????????????????????????????????????? | | ?????????????????????????????????????????? | | ?????????????????????????????????????????? | | ????????????????????????????? ?????????? | | ????????????????????????????? ?????????? | | ????????????????????????????? #????????? | | ????????????????????????????? ?????????? | | ????????????????????????????? ?????????? | | ????????????????????????????? ?????????? | | ????????????????????????????? ?????????? | | ????????????????????????????# #?????????? | | ????????????????????????????# #?????????? | | ????????????????????????????# #?????????? | | ????????????????????????????# #?????????? | | ????????????????????????????# #?????????? | | ????????????????????????????# #####?????? | | ??????????????????????####### # ###???? | | ?????????????????????## * = ##??? | | ???????????# ???????## dd #??? | | ?????????# # ### #??? | | ??????? u%a ##??? | | ??????? u @ ##???? | | ??????? # ## # ##????? | | ??????????## ???## ##?????? | | ???????????#????????## #??????? | | ?????????????????????## #??????? | | ??????????????????????## ## #?????? | | ???????????????????????## ##?# #?????? | | ????????????????????????####??? #?????? | | ??????????????????????????????? #?????? | | ??????????????????????????????? ##?????? | | ??????????????????????????????? ##??????? | | ???????????????????????????????? #???????? | | ????????????????????????????????#????????? | | ?????????????????????????????????????????? | | ?????????????????????????????????????????? | | | | | | | | | | | | | | | | | | | | | +----------------------------------------------------+ Best States ------------- Heat Dissipation 25 Energy Generation 10 Energy Capacity 250 Matter Stores 300 Matter Capacity 300 Sight Range 16 Terrain Scan Density 10 Power Shielding 33 Evasion (%) 50 Item Schematics ----------------- None Robot Schematics ------------------ None Fabricated ------------ Nothing Alien Tech Used ----------------- None Achievements -------------- First Step to Greatness Challenges ------------ None Game ------ Seed LightningCloakingArray Manual? 0 Play Time 00:34:07 Cumulative 1.1 hours Start 2019.12.15 @ 22:30:38 End 2019.12.15 @ 23:11:52 Sessions 1 Manual Loads 0 Difficulty Rogue Special Mode None Game No. 1 Rogue 1 Adventurer 0 Explorer 0 Win Type - Total 0 Types 0/0/0/0/0/0/0 Lore% 0 Gallery% 1 Achievement% 0 Wizard Run 0 Options --------- ASCII 0 Keyboard 0 Movement Mouse Keybinds 0 Fullscreen 1 Font 16/SmallcapsGlow Map View 75x55 Tactical HUD 1 Map Filters NONE Filters NONE Steam 0 RUN: 297e68a0-87c7-415a-ac19-eae48664b6e3